Cogmind - Beta 15 *** ADVENTURER MODE // 2025.08.25 @ 20:58:24 Player: Banshee Result: Self-destructed Performance ------------- Evolutions (5) 2500 Regions Visited (4) 800 Robots Destroyed (5) 25 Value Destroyed (235) 235 Prototype IDs (0) 0 Alien Tech Used (0) 0 Bonus (491) 491 TOTAL SCORE: 4051 Bonus ------- Pacifist 491 Cogmind --------- Core Integrity 681/1000 Matter 238/300 Energy 90/100 System Corruption 5% Temperature Cool (0) Movement Walking (120) Location -5/Factory Parts ------- > --- POWER (2) -------- (None) > --- PROPULSION (4) --- Carbon-fiber Leg > --- UTILITY (6) ------ Advanced Terrain Scan Processor > --- WEAPON (5) ------- Lightning Gun Mass Driver > --- INVENTORY (5) ---- Subdweller Beam Cannon Peak State ------------ > --- POWER ------------ (None) > --- PROPULSION ------- Carbon-fiber Leg > --- UTILITY ---------- Advanced Terrain Scan Processor > --- WEAPON ----------- Lightning Gun Improved Arc Projector Subdweller Machine Gun Mass Driver Flamer > --- INVENTORY -------- Subdweller Beam Cannon [Rating: 27] Favorites ----------- Power Light Ion Engine Engine Light Ion Engine Propulsion Aluminum Leg Leg Aluminum Leg Utility Improved Light Armor Plating Device Subdweller Optics Processor Advanced Terrain Scan Processor Protection Improved Light Armor Plating Weapon Flamer Energy Gun Small Laser Ballistic Gun Subdweller Machine Gun Ballistic Cannon Heavy Flak Cannon Special Weapon Flamer Build | -11 -10 -10 -7 -5 ------- Run | Yrd Mat Sub Scr Fac Slots Evolved 10 | . . . . 10 Power 1 | . . . . 1 Propulsion 2 | . . . . 2 Utility 4 | . . . . 4 Weapon 3 | . . . . 3 Parts Attached 17 | 3 2 3 2 7 Power 3 | 1 . 1 . 1 Engine 3 | 1 . 1 . 1 Core . | . . . . . Reactor . | . . . . . Propulsion 3 | 2 . . . 1 Treads . | . . . . . Leg 3 | 2 . . . 1 Wheel . | . . . . . Hover . | . . . . . Flight . | . . . . . Utility 3 | . . 1 1 1 Device 1 | . . 1 . . Storage . | . . . . . Processor 1 | . . . . 1 Hackware . | . . . . . Protection 1 | . . . 1 . Artifact . | . . . . . Weapon 8 | . 2 1 1 4 Energy Gun 3 | . 1 . . 2 Energy Cannon . | . . . . . Ballistic Gun 2 | . 1 . 1 . Ballistic Cannon 2 | . . . . 2 Launcher . | . . . . . Special Weapon 1 | . . 1 . . Impact Weapon . | . . . . . Slashing Weapon . | . . . . . Piercing Weapon . | . . . . . Special Melee Weapon . | . . . . . Unidentified Prototypes . | . . . . . Parts Lost 8 | . . . . 8 Power 2 | . . . . 2 Propulsion 2 | . . . . 2 Utility 1 | . . . . 1 Weapon 3 | . . . . 3 Highest Loss Streak 8 | . . . . 8 To Critical Strikes . | . . . . . Average Backups 3 | 1 . 1 4 4 Power . | . . . 1 . Propulsion . | . . . . . Utility . | . . . . . Weapon 2 | 1 . 1 3 3 Tool/Special . | . . . . . Unused Backups 4 | 1 . . . 3 Power . | . . . . . Propulsion 1 | . . . . 1 Utility 1 | 1 . . . . Weapon 2 | . . . . 2 Tool/Special . | . . . . . Average Slot Usage (%) 78 | . 59 74 98 45 Engine 11 | . 14 14 14 5 Leg 22 | . 28 28 28 10 Device 7 | . . 3 14 . Processor 1 | . . . . 4 Protection 8 | . . . 12 4 Energy Gun 1 | . 8 4 . . Ballistic Gun 11 | . 8 14 14 4 Ballistic Cannon 1 | . . . . 3 Special Weapon 10 | . . 9 14 4 Peak Build Rating 27 | 3 5 9 13 27 Average Rating 11 | 2 4 6 12 19 On Entrance 6 | . 3 5 9 13 Naked Turns . | . . . . . Heaviest Build 30 | 3 6 11 16 30 Greatest Support 35 | 20 20 20 20 35 Greatest Overweight (x) 1 | . . . . 1 Average Overweight (x) . | . . . . . Largest Inventory Capacity 5 | 5 5 5 5 5 Average Capacity 5 | 5 5 5 5 5 Most Carried 5 | 2 2 5 5 5 Average Carried 3 | 1 . 2 4 4 Final Capacity 5 | 5 5 5 5 5 Final Carried 5 | 2 . 4 5 1 Class Distribution -------------------- 81% | Mutant 16% | Tank Dominant Class ---------------- Mutant | -10/Materials Mutant | -10/Subcaves Mutant | -7/Scraptown Tank | -5/Factory Resources | -11 -10 -10 -7 -5 ----------- Run | Yrd Mat Sub Scr Fac Matter Collected 416 | 230 . 50 30 106 Remotely . | . . . . . Salvage Created 200 | . . . . 200 Parts 8 | . . . . 8 Haulers Intercepted . | . . . . . Recyclers Shooed . | . . . . . Parts Field Recycled . | . . . . . Retrieved Matter . | . . . . . Parts Self-Destructed . | . . . . . Prevented . | . . . . . Kills | -11 -10 -10 -7 -5 ------- Run | Yrd Mat Sub Scr Fac Combat Hostiles Destroyed 4 | . . . . 4 Guns 2 | . . . . 2 Cannons 1 | . . . . 1 Classes Destroyed 4 | . . . . 4 Worker 1 | . . . . 1 Grunt 2 | . . . . 2 Sentry 1 | . . . . 1 Programmer 1 | . . . . 1 Best Kill Streak 3 | . . . . 3 Combat Bots Only 2 | . . . . 2 Max Kills in Single Turn 2 | . . . . 2 Gunslinging . | . . . . . Exploded . | . . . . . Melee . | . . . . . Uniques/NPCs Destroyed . | . . . . . Combat | -11 -10 -10 -7 -5 -------- Run | Yrd Mat Sub Scr Fac Hostile Shots Fired 109 | . . . . 109 Missed 29 | . . . . 29 Hits 80 | . . . . 80 Projectile 80 | . . . . 80 Critical Strikes 5 | . . . . 5 Part Disruptions 1 | . . . . 1 Damage Taken 1289 | . . 6 . 1283 Core 319 | . . . . 319 Absorbed by Shields . | . . . . . Ignored by Resistances 349 | . . 2 . 347 Core Remaining (%) 100 | 100 . . 100 . Volleys Fired 24 | . . . . 24 Largest 3 | . . . . 3 Hottest 174 | . . . . 174 Shots Fired 47 | . . . . 47 Gun 24 | . . . . 24 Cannon 14 | . . . . 14 Launcher . | . . . . . Special 9 | . . . . 9 Kinetic 36 | . . . . 36 Thermal 9 | . . . . 9 Explosive . | . . . . . Electromagnetic 2 | . . . . 2 Robot Hit Streak 12 | . . . . 12 Robot Miss Streak 3 | . . . . 3 Penetration Max . | . . . . . Secondary Targets . | . . . . . Shots Hit Robots 32 | . . . . 32 Core Hits 23 | . . . . 23 Critical Kills . | . . . . . Critical Parts Destroyed . | . . . . . Critical Strikes 1 | . . . . 1 Burn 1 | . . . . 1 Melee Attacks . | . . . . . Impact . | . . . . . Slashing . | . . . . . Piercing . | . . . . . Sneak Attacks . | . . . . . Combat Hostiles . | . . . . . Follow-up Attacks . | . . . . . Damage Inflicted 755 | . . . . 755 Guns 325 | . . . . 325 Cannons 346 | . . . . 346 Explosions . | . . . . . Melee . | . . . . . Ramming 5 | . . . . 5 Kinetic 630 | . . . . 630 Thermal 79 | . . . . 79 Explosive . | . . . . . Electromagnetic 41 | . . . . 41 Impact . | . . . . . Slashing . | . . . . . Piercing . | . . . . . Highest Corruption 5 | . . . . 5 Average Corruption 4 | . . . . 4 Corruption Purged . | . . . . . Corruption Blocked . | . . . . . Effects 1 | . . . . 1 Data Loss (minor) 1 | . . . . 1 Overload Shots . | . . . . . Overflow Damage . | . . . . . Projectiles . | . . . . . Explosions . | . . . . . Melee . | . . . . . Knockbacks 4 | . . . . 4 Impact . | . . . . . Kinetic 4 | . . . . 4 Secondary . | . . . . . Self-Inflicted Damage . | . . . . . Shots . | . . . . . Rammed . | . . . . . Targets Rammed 1 | . . . . 1 Kicked 1 | . . . . 1 Crushed . | . . . . . Highest Temperature 139 | . . . . 139 Average Temperature 51 | . . . . 51 Received Heat Transfer 528 | . . 6 . 522 Siege Activations . | . . . . . Martial Activations . | . . . . . Shielding Activations . | . . . . . Robots Disrupted . | . . . . . Combat Hostiles . | . . . . . Robots Corrupted . | . . . . . Combat Hostiles . | . . . . . Parts Fried . | . . . . . Impact Corruptions . | . . . . . Robots Melted 1 | . . . . 1 Combat Hostiles 1 | . . . . 1 Parts Melted 2 | . . . . 2 Heat Transferred 720 | . . . . 720 Parts Sabotaged . | . . . . . Parts Stolen . | . . . . . Parts Stripped . | . . . . . Power Chain Reactions . | . . . . . Alert | -11 -10 -10 -7 -5 ------- Run | Yrd Mat Sub Scr Fac Maximum Alert Level . | . . . . . Low Security (%) 100 | 100 100 . . 100 Level 1 . | . . . . . Level 2 . | . . . . . Level 3 . | . . . . . Level 4 . | . . . . . Level 5 . | . . . . . High Security . | . . . . . Max Security . | . . . . . Peak Influence 35 | . . . . 35 Initial . | . . . . . Average 2 | . . . . 4 Influence Increases 105 | . . . . 105 Destroy 0b10 Robot/C 80 | . . . . 80 Destroy 0b10 Robot/NC 5 | . . . . 5 Destroy Leader 20 | . . . . 20 Influence Decreases 105 | . . . . 105 Time Decay 60 | . . . . 60 Lost Part 45 | . . . . 45 Squads Dispatched 3 | . . . . 3 Investigation . | . . . . . Extermination 1 | . . . . 1 Reinforcement 2 | . . . . 2 Assault . | . . . . . Garrison . | . . . . . Intercept . | . . . . . Searches Triggered . | . . . . . Construction Impeded . | . . . . . Haulers Reinforced . | . . . . . Active Scanning Responses . | . . . . . Cargo Convoy Interrupts . | . . . . . Stealth | -11 -10 -10 -7 -5 --------- Run | Yrd Mat Sub Scr Fac Distress Signals . | . . . . . Communications Jammed . | . . . . . Distress Signals . | . . . . . Times Spotted 15 | . . 2 . 13 Peak Tracking Total 6 | . . 2 . 6 Tactical Retreats . | . . . . . Traps | -11 -10 -10 -7 -5 ------- Run | Yrd Mat Sub Scr Fac Traps Triggered 1 | . . . . 1 Indirectly . | . . . . . Trap Hack Attempts . | . . . . . Triggered . | . . . . . Disarmed . | . . . . . Reprogrammed . | . . . . . Reused . | . . . . . Traps Extracted . | . . . . . Installed . | . . . . . Triggered . | . . . . . Machines | -11 -10 -10 -7 -5 ---------- Run | Yrd Mat Sub Scr Fac Machines Disabled . | . . . . . Max in Single Turn . | . . . . . Machines Repaired . | . . . . . Machines Dismantled . | . . . . . Machines Sabotaged . | . . . . . Overloaded Fab Kills . | . . . . . Hacking | -11 -10 -10 -7 -5 --------- Run | Yrd Mat Sub Scr Fac Machines Accessed 4 | . . . 2 2 Terminals 1 | . . . . 1 Fabricators . | . . . . . Repair Stations 1 | . . . . 1 Recycling Units . | . . . . . Scanalyzers . | . . . . . Garrison Access . | . . . . . Total Hacks 16 | . . . 13 3 Successful 14 | . . . 13 1 Failed 2 | . . . . 2 Catastrophic . | . . . . . Database Lockouts . | . . . . . Manual . | . . . . . Terminals 2 | . . . . 2 Fabricators . | . . . . . Repair Stations 1 | . . . . 1 Recycling Units . | . . . . . Scanalyzers . | . . . . . Garrison Access . | . . . . . Terminal Hacks 14 | . . . 13 1 Record 13 | . . . 13 . Locate Traps 1 | . . . . 1 Fabricator Hacks . | . . . . . Repair Station Hacks . | . . . . . Recycling Unit Hacks . | . . . . . Scanalyzer . | . . . . . Garrison Access Hacks . | . . . . . Unauthorized Hacks . | . . . . . Terminals . | . . . . . Fabricators . | . . . . . Repair Stations . | . . . . . Recycling Units . | . . . . . Scanalyzers . | . . . . . Garrison Access . | . . . . . Data Cores Recovered . | . . . . . Used . | . . . . . Hacking Detections 1 | . . . . 1 Full Trace Events . | . . . . . Feedback Events . | . . . . . Feedback Blocked . | . . . . . Robot Schematics Acquired . | . . . . . Robots Built . | . . . . . Authchips . | . . . . . Time . | . . . . . Total Robot Build Rating . | . . . . . Part Schematics Acquired . | . . . . . Parts Built . | . . . . . Authchips . | . . . . . Time . | . . . . . Total Part Build Rating . | . . . . . Parts Repaired . | . . . . . Time . | . . . . . Parts Recycled . | . . . . . Recycled Matter . | . . . . . Retrieved Matter . | . . . . . Retrieved Components . | . . . . . Parts Scanalyzed . | . . . . . Part Schematics Acquired . | . . . . . Parts Damaged . | . . . . . Bothacking | -11 -10 -10 -7 -5 ------------ Run | Yrd Mat Sub Scr Fac Used RIF Installer . | . . . . . Robots Hacked . | . . . . . Non-combat . | . . . . . Combat . | . . . . . Robot Hacks Applied . | . . . . . Relay Couplers Released . | . . . . . Fabnet Peak Effective % . | . . . . . Robots Rewired . | . . . . . Allies Hacked . | . . . . . Hacks Repelled . | . . . . . Allies | -11 -10 -10 -7 -5 -------- Run | Yrd Mat Sub Scr Fac Total Allies . | . . . . . Largest Group . | . . . . . Highest-Rated Group . | . . . . . Highest-Rated Ally . | . . . . . Total Orders . | . . . . . Ally Attacks . | . . . . . Total Damage . | . . . . . Kills . | . . . . . Allies Corrupted . | . . . . . Allies Melted . | . . . . . Intel | -11 -10 -10 -7 -5 ------- Run | Yrd Mat Sub Scr Fac Active Infowar (turns) 936 | . . 62 872 2 Optics 936 | . . 62 872 2 Robot Analysis Total . | . . . . . Derelict Logs Recovered 5 | . . 2 3 . Drone Launches . | . . . . . Drone Recoveries . | . . . . . Exploration | -11 -10 -10 -7 -5 ------------- Run | Yrd Mat Sub Scr Fac Turns Passed 1942 | 307 41 233 872 489 Spaces Moved 1309 | 117 25 169 717 281 Core 21 | 21 . . . . Treads . | . . . . . Legs 1288 | 96 25 169 717 281 Wheels . | . . . . . Hover . | . . . . . Flight . | . . . . . Fastest Speed 50 | 50 120 120 120 120 Average Speed 121 | 107 120 120 120 129 Slowest Speed 190 | 120 120 120 120 190 Overloaded Moves . | . . . . . Propulsion Burnouts . | . . . . . Robots Hopped . | . . . . . Potential Cave-ins . | . . . . . Cave-ins Triggered . | . . . . . Exploration Rate (%) 19 | 9 4 21 55 9 Regions Visited 4 Branch Regions 2 Pre-discovered Areas 5 | . . 2 3 . Known Exits Taken . | . . . . . Unknown Exits Taken 4 | 1 1 1 1 . Scrap Searched 2 | . . . 2 . Spaces Dug . | . . . . . Terrain Destroyed . | . . . . . Melee . | . . . . . Projectile . | . . . . . AOE . | . . . . . Terrain Rammed . | . . . . . Walls Destroyed . | . . . . . Machines Disabled . | . . . . . Actions | -11 -10 -10 -7 -5 --------- Run | Yrd Mat Sub Scr Fac Total 1615 | 299 36 199 727 354 Wait 237 | 173 10 19 6 29 Move 1305 | 116 24 168 716 281 Hop . | . . . . . Pick Up 22 | 6 . 7 2 7 Fast Attach . | . . . . . Attach 13 | 3 2 1 1 6 Detach . | . . . . . Swap 5 | . . 2 2 1 Drop 8 | 1 . 2 . 5 Fire 24 | . . . . 24 Melee . | . . . . . Ram . | . . . . . Kick 1 | . . . . 1 Crush . | . . . . . Escape Stasis . | . . . . . Rewire . | . . . . . Trap . | . . . . . Miscellaneous . | . . . . . Route ------- -11/Scrapyard -10/Materials -10/Subcaves -7/Scraptown -5/Factory (discovered 1 exit: [*Upp]) History --------- Turn | Location | Event 7 | -11/Scrapyard | Discovered new exit (range 16) 308 | -11/Scrapyard | Entered Materials 309 | -10/Materials | Build established: Mutant 309 | -10/Materials | Met a group of wandering Federalists 346 | -10/Materials | Discovered new exit (range 5) 349 | -10/Materials | Entered Subcaves 350 | -10/Subcaves | Continued accompanying wandering Federalists (6) 393 | -10/Subcaves | Learned location of Recycling (-7) 542 | -10/Subcaves | Learned location of Zion (-7) 574 | -10/Subcaves | Wandering Federalist uncovered a shortcut to Scraptown 582 | -10/Subcaves | Entered Scraptown 600 | -7/Scraptown | Heard Great Nut preacher, LISTEN AND RECITE! 801 | -7/Scraptown | Scanned Subdweller tech in exchange for log data 803 | -7/Scraptown | Learned location of Testing (-3) 805 | -7/Scraptown | Learned location of Warlord (-4) 806 | -7/Scraptown | Learned location of Armory (-3) 896 | -7/Scraptown | Visited UFD Registry 920 | -7/Scraptown | Visited Spacefarers 985 | -7/Scraptown | Visited Red Mages 1023 | -7/Scraptown | Visited Symbiants 1444 | -7/Scraptown | Discovered new exit (range 5) 1454 | -7/Scraptown | Entered Factory 1454 | -5/Factory | Evolved 10 slots: Power x1, Propulsion x2, Utility x4, Weapon x3 1617 | -5/Factory | Discovered new exit (range 16) 1888 | -5/Factory | Build established: Tank 1943 | -5/Factory | Self-destructed Last Messages --------------- 01917_ K-01 Serf collects debris. 01918_ Slug penetrates Wall. 01918_ R-10 Processor collects Terrain Scanner. 01918_ Flamer destroyed. 01919_ K-01 Serf collects debris. 01920_ R-10 Processor collects Terrain Scan Processor. 01921_ Slug penetrates Wall. 01921_ Sub. Machine Gun shoots sparks and powers down. 01921_ K-01 Serf collects debris. 01923_ Penetrated by Slug. 01925_ Broken Sub. Machine Gun destroyed. 01925_ K-01 Serf collects debris. 01926_ Penetrated by Slug. 01926_ K-01 Serf collects debris. 01933_ G-50 Soldier destroyed. 01934_ K-01 Serf collects debris. 01940_ Imp. Arc Projector destroyed. 01942_ K-01 Serf collects debris. Map ----- +----------------------------------------------------+ | ?????????????????????????????????????????????????? | | ?????????????????????????????????????????????????? | | ?????????????????????????????????????????????????? | | ?????????????????????????????????????????????????? | | ?????????????????????????????????????????????????? | | ?????????????????????????????????????????????????? | | ?????????????????????????????????????????????????? | | ?????????????????????????????????????????????????? | | ?????????????????????????????????????????????????? | | ?????????????????????????????????!???????????????? | | ???????????????????????????????? ???????? ??????? | | ???????????????????????????????? ??????? ?????? | | ?????????????????????????????###/###????# ?????? | | ?????????????????????????????# ##### ?????? | | ????????????????????????????## ! ??????? | | ????????????????????????????? % ????????? | | ?????????????????????????????# % k ?????????? | | ?????????????????????????????# #??????????? | | ?????????????????????????????# =% #??????????? | | ?????????????????????????????# k #??????????? | | ????????????????????????????## #??????????? | | ????????????????????????????# Y = #??????????? | | ??????????? #################A |%* #???######## | | ??????????# k g#####]^ #???# | | ??????????? Rg #???# #???# | | ???????????????##### @ ####???#= ##### | | ???????????????????# #??????# ! ! | | ???????????????????# p#??????####* | | ???????????????????# #?????????# | | ???????????????????#t #?????????# * | | ?????????????????? #?????????# % | | ????????????????? #?????????# | | ???????????????? #?????????# % | | ??????????????"" """ """ #?????????# % | | ??????????????"" """ """ #?????????# | | ??????????????????"" """ #?????????# | | ??????????????????u ??? #?????????############/ | | ???????????????????????" ???????????????????? | | ???????????????????????" #?????????????????????" | | ???????????????????????? ??????????????????????? | | ???????????????????????? ??????????????????????? | | ?????????????????????????????????????????????????? | | ?????????????????????????????????????????????????? | | ?????????????????????????????????????????????????? | | ?????????????????????????????????????????????????? | | ?????????????????????????????????????????????????? | | ?????????????????????????????????????????????????? | | ?????????????????????????????????????????????????? | | ?????????????????????????????????????????????????? | | ?????????????????????????????????????????????????? | +----------------------------------------------------+ Best States ------------- Heat Dissipation 40 Energy Generation 21 Energy Capacity 315 Matter Stores 300 Matter Capacity 300 Sight Range 21 Terrain Scan Density 210 Armor Coverage 150 Resistance: KI 20 Resistance: TH 20 Resistance: EX 20 Resistance: EM 20 Resistance: I 20 Resistance: S 20 Resistance: P 20 Evasion (%) 55 Offensive Hacking 10 Item Schematics ----------------- None Robot Schematics ------------------ None Fabricated ------------ Nothing Repaired ---------- Nothing Alien Tech Used ----------------- None Achievements -------------- None Challenges ------------ None Game ------ Seed RecyclingBombSpear Manual? 0 Play Time 00:38:07 Cumulative 9.5 hours Start 2025.08.25 @ 13:05:52 End 2025.08.25 @ 20:58:24 Sessions 4 Manual Loads 0 Difficulty Adventurer Special Mode None Game No. 13 Rogue 5 Adventurer 8 Explorer 0 Win Type - Total 0 Types 0/0/0/0/0/0/0/0/0/0 Lore% 7 Gallery% 15 Achievement% 17 Wizard Run 0 Options --------- Layout 1 ASCII 0 Keyboard 0 Movement Numpad Keybinds 0 Fullscreen 1 Font 32/Tamsyn Map View 50x35 Zoom Use 0% Tactical HUD 1 Map Filters NONE Filters NONE Steam 1 RUN: a0b96c36-aa7b-4c84-92e9-aa47cbbdb79e